[Event "*** Titled Tuesday 3|2 Blitz"]
[Site "Chess.com"]
[Date "2016.06.07"]
[Round "2"]
[White "Noukii"]
[Black "matej2221"]
[Result "0-1"]
[WhiteElo "2632"]
[BlackElo "2496"]
[TimeControl "180+2"]
[EndTime "17:22:46 PDT"]
[Termination "matej2221 won by resignation"]

1. d4 {[%clk 0:03:01.9]} 1... d5 {[%clk 0:03:00.5]} 2. c4 {[%clk 0:03:03.3]}
2... c6 {[%clk 0:03:02]} 3. Nc3 {[%clk 0:03:03.9]} 3... Nf6 {[%clk 0:03:03.4]}
4. Nf3 {[%clk 0:03:05.6]} 4... e6 {[%clk 0:03:04.7]} 5. Qb3 {[%clk 0:03:02.4]}
5... dxc4 {[%clk 0:03:03.6]} 6. Qxc4 {[%clk 0:03:04.3]} 6... b5 {[%clk 0:03:05]}
7. Qd3 {[%clk 0:03:05.9]} 7... b4 {[%clk 0:03:04.2]} 8. Na4 {[%clk 0:03:03.5]}
8... Qa5 {[%clk 0:03:04.2]} 9. b3 {[%clk 0:03:03.8]} 9... Nbd7 {[%clk
0:03:04.8]} 10. e4 {[%clk 0:03:03.8]} 10... c5 {[%clk 0:03:02.2]} 11. Be3 {[%clk
0:03:05.3]} 11... Bb7 {[%clk 0:02:59.5]} 12. dxc5 {[%clk 0:02:58]} 12... Bxe4
{[%clk 0:02:54.8]} 13. Qb5 {[%clk 0:02:58.7]} 13... Qxb5 {[%clk 0:02:49.2]} 14.
Bxb5 {[%clk 0:03:00.6]} 14... Rb8 {[%clk 0:02:50.8]} 15. Be2 {[%clk 0:03:00.9]}
15... Bc6 {[%clk 0:02:43.5]} 16. Rc1 {[%clk 0:03:00.4]} 16... Nd5 {[%clk
0:02:42.1]} 17. Bd4 {[%clk 0:02:56.4]} 17... f6 {[%clk 0:02:39.9]} 18. O-O
{[%clk 0:02:56.9]} 18... e5 {[%clk 0:02:39.4]} 19. Rfe1 {[%clk 0:02:45.9]} 19...
Be7 {[%clk 0:02:03.1]} 20. Bb2 {[%clk 0:02:44.7]} 20... Bxa4 {[%clk 0:01:57.1]}
21. bxa4 {[%clk 0:02:45.3]} 21... Nxc5 {[%clk 0:01:55.5]} 22. Bb5+ {[%clk
0:02:46.8]} 22... Kf8 {[%clk 0:01:48.2]} 23. Red1 {[%clk 0:02:44.3]} 23... Nc7
{[%clk 0:01:44.1]} 24. Be2 {[%clk 0:02:29.5]} 24... N7e6 {[%clk 0:01:44.3]} 25.
a5 {[%clk 0:02:16.8]} 25... Kf7 {[%clk 0:01:41]} 26. Bc4 {[%clk 0:02:17.9]}
26... Rhd8 {[%clk 0:01:39.3]} 27. g3 {[%clk 0:02:03.1]} 27... Kf8 {[%clk
0:01:40.1]} 28. Nh4 {[%clk 0:01:55.9]} 28... g6 {[%clk 0:01:38.4]} 29. Ng2
{[%clk 0:01:54.7]} 29... Rxd1+ {[%clk 0:01:38.7]} 30. Rxd1 {[%clk 0:01:55.1]}
30... Rd8 {[%clk 0:01:40.5]} 31. Rxd8+ {[%clk 0:01:55.2]} 31... Bxd8 {[%clk
0:01:42.4]} 32. a6 {[%clk 0:01:53.1]} 32... Bb6 {[%clk 0:01:39.7]} 33. Ne3
{[%clk 0:01:53.5]} 33... Nc7 {[%clk 0:01:33.8]} 34. Ng4 {[%clk 0:01:46.8]} 34...
Ke7 {[%clk 0:01:30.9]} 35. Kf1 {[%clk 0:01:47.5]} 35... N7xa6 {[%clk 0:01:29.6]}
36. f4 {[%clk 0:01:48.3]} 36... Nc7 {[%clk 0:01:20.1]} 37. fxe5 {[%clk
0:01:48.1]} 37... fxe5 {[%clk 0:01:02]} 38. Nxe5 {[%clk 0:01:49.1]} 38... a5
{[%clk 0:00:49.1]} 39. Bd4 {[%clk 0:01:37.2]} 39... N7e6 {[%clk 0:00:44.5]} 40.
Be3 {[%clk 0:00:51]} 40... Bc7 {[%clk 0:00:45.3]} 41. Nf3 {[%clk 0:00:44.6]}
41... Bd6 {[%clk 0:00:36.1]} 42. Ke2 {[%clk 0:00:41.5]} 42... a4 {[%clk
0:00:36.3]} 43. Kd2 {[%clk 0:00:43.1]} 43... h5 {[%clk 0:00:31.4]} 44. Kc2
{[%clk 0:00:44.3]} 44... Kf6 {[%clk 0:00:27.5]} 45. Bb5 {[%clk 0:00:44.9]} 45...
g5 {[%clk 0:00:26.5]} 46. Nd4 {[%clk 0:00:41]} 46... Nxd4+ {[%clk 0:00:22.8]}
47. Bxd4+ {[%clk 0:00:42.9]} 47... Kf5 {[%clk 0:00:23.2]} 48. Be2 {[%clk
0:00:41.6]} 48... g4 {[%clk 0:00:20.5]} 49. Bb5 {[%clk 0:00:41.6]} 49... Ne6
{[%clk 0:00:13.9]} 50. Bf2 {[%clk 0:00:36.5]} 50... Bc5 {[%clk 0:00:13.2]} 51.
Be1 {[%clk 0:00:37.3]} 51... Nd4+ {[%clk 0:00:10.8]} 52. Kd3 {[%clk 0:00:38.9]}
52... Nxb5 {[%clk 0:00:12.4]} 53. Kc4 {[%clk 0:00:40.8]} 53... b3 {[%clk
0:00:08.1]} 54. axb3 {[%clk 0:00:42]} 54... axb3 {[%clk 0:00:10]} 55. Kxb3
{[%clk 0:00:43.9]} 55... Bg1 {[%clk 0:00:10.8]} 56. Kc4 {[%clk 0:00:45.3]} 56...
Nd6+ {[%clk 0:00:12.4]} 57. Kd3 {[%clk 0:00:46.9]} 57... Ne4 {[%clk 0:00:14]}
58. Ke2 {[%clk 0:00:45.9]} 58... Bxh2 {[%clk 0:00:15.6]} 59. Ke3 {[%clk
0:00:47.3]} 59... Bxg3 {[%clk 0:00:17.2]} 60. Ba5 {[%clk 0:00:49.2]} 60... h4
{[%clk 0:00:18.4]} 61. Ke2 {[%clk 0:00:51.1]} 61... h3 {[%clk 0:00:19.9]} 62.
Kf1 {[%clk 0:00:53]} 62... Be5 {[%clk 0:00:21.2]} 63. Bb6 {[%clk 0:00:53.4]}
63... Kf4 {[%clk 0:00:20]} 64. Kg1 {[%clk 0:00:54.5]} 64... Kf3 {[%clk
0:00:21.5]} 65. Kh1 {[%clk 0:00:55.8]} 65... g3 {[%clk 0:00:23.1]} 66. Kg1
{[%clk 0:00:57.7]} 66... Bf4 {[%clk 0:00:23]} 67. Kh1 {[%clk 0:00:58.7]} 67...
Be3 {[%clk 0:00:22.8]} 68. Bc7 {[%clk 0:00:58.9]} 68... g2+ {[%clk 0:00:24]} 69.
Kh2 {[%clk 0:01:00.8]} 69... g1=Q+ {[%clk 0:00:25.4]} 0-1

[Event "*** Titled Tuesday 3|2 Blitz"]
[Site "Chess.com"]
[Date "2016.06.07"]
[Round "2"]
[White "severomorskij"]
[Black "Iball95"]
[Result "1-0"]
[WhiteElo "2614"]
[BlackElo "2457"]
[TimeControl "180+2"]
[EndTime "17:23:19 PDT"]
[Termination "severomorskij won by checkmate"]

1. d4 {[%clk 0:03:01.9]} 1... Nf6 {[%clk 0:02:59]} 2. c4 {[%clk 0:03:02.5]} 2...
c6 {[%clk 0:02:59.9]} 3. Nc3 {[%clk 0:03:02.6]} 3... d5 {[%clk 0:03:01.4]} 4. e3
{[%clk 0:03:03.3]} 4... a6 {[%clk 0:03:02.1]} 5. Qc2 {[%clk 0:03:02.5]} 5... e6
{[%clk 0:03:01.8]} 6. Nf3 {[%clk 0:03:01.7]} 6... c5 {[%clk 0:03:00.8]} 7. cxd5
{[%clk 0:03:00.6]} 7... exd5 {[%clk 0:02:58.2]} 8. Be2 {[%clk 0:03:00.4]} 8...
Nc6 {[%clk 0:02:58.2]} 9. O-O {[%clk 0:03:00.9]} 9... cxd4 {[%clk 0:02:54.2]}
10. Nxd4 {[%clk 0:02:56]} 10... Nxd4 {[%clk 0:02:54.7]} 11. exd4 {[%clk
0:02:57.5]} 11... Be7 {[%clk 0:02:56.3]} 12. Bf3 {[%clk 0:02:55.5]} 12... O-O
{[%clk 0:02:57.4]} 13. Bg5 {[%clk 0:02:51.1]} 13... Be6 {[%clk 0:02:51.1]} 14.
Qb3 {[%clk 0:02:49.9]} 14... b5 {[%clk 0:02:05.8]} 15. Rad1 {[%clk 0:02:36.3]}
15... b4 {[%clk 0:01:43.2]} 16. Bxf6 {[%clk 0:02:31.7]} 16... Bxf6 {[%clk
0:01:34.4]} 17. Qxb4 {[%clk 0:02:26.7]} 17... Rb8 {[%clk 0:01:32.3]} 18. Qa3
{[%clk 0:02:26.7]} 18... Qb6 {[%clk 0:01:33.7]} 19. Nxd5 {[%clk 0:01:43.5]}
19... Bxd5 {[%clk 0:01:28.7]} 20. Bxd5 {[%clk 0:01:44.2]} 20... Bxd4 {[%clk
0:01:26.8]} 21. Bb3 {[%clk 0:01:34.4]} 21... Rfd8 {[%clk 0:01:20.2]} 22. Qe7
{[%clk 0:01:07.4]} 22... Qf6 {[%clk 0:01:13.2]} 23. Qxf6 {[%clk 0:01:01.5]}
23... Bxf6 {[%clk 0:01:15.1]} 24. Rxd8+ {[%clk 0:00:56.2]} 24... Rxd8 {[%clk
0:01:14.2]} 25. Rc1 {[%clk 0:00:56.1]} 25... Bxb2 {[%clk 0:00:35.9]} 26. Rc7
{[%clk 0:00:54.8]} 26... Rf8 {[%clk 0:00:37.5]} 27. Ra7 {[%clk 0:00:47.5]} 27...
Bd4 {[%clk 0:00:26.9]} 28. Rxa6 {[%clk 0:00:46.8]} 28... Rc8 {[%clk 0:00:24]}
29. g3 {[%clk 0:00:34.1]} 29... Bc5 {[%clk 0:00:17.9]} 30. Ra4 {[%clk
0:00:30.1]} 30... g6 {[%clk 0:00:18]} 31. Rf4 {[%clk 0:00:25.1]} 31... Rc7
{[%clk 0:00:19]} 32. a4 {[%clk 0:00:23.8]} 32... Kg7 {[%clk 0:00:17.8]} 33. a5
{[%clk 0:00:16.7]} 33... f5 {[%clk 0:00:18.5]} 34. Ra4 {[%clk 0:00:15.6]} 34...
Kf6 {[%clk 0:00:19.4]} 35. a6 {[%clk 0:00:15.8]} 35... Ke5 {[%clk 0:00:19.6]}
36. Ra2 {[%clk 0:00:15.4]} 36... Kd6 {[%clk 0:00:20.8]} 37. Kg2 {[%clk
0:00:16.7]} 37... Kc6 {[%clk 0:00:22.1]} 38. Bc4 {[%clk 0:00:15.4]} 38... Kb6
{[%clk 0:00:23.2]} 39. Bf1 {[%clk 0:00:15.5]} 39... Rd7 {[%clk 0:00:23.3]} 40.
Rc2 {[%clk 0:00:14.3]} 40... Re7 {[%clk 0:00:23.2]} 41. h4 {[%clk 0:00:14.7]}
41... Re4 {[%clk 0:00:22.9]} 42. Rb2+ {[%clk 0:00:13.3]} 42... Rb4 {[%clk
0:00:23.9]} 43. Re2 {[%clk 0:00:11.2]} 43... Re4 {[%clk 0:00:24]} 44. Ra2 {[%clk
0:00:10.5]} 44... Ka7 {[%clk 0:00:24.2]} 45. Rc2 {[%clk 0:00:11]} 45... Re5
{[%clk 0:00:23.2]} 46. Rd2 {[%clk 0:00:05.6]} 46... Re7 {[%clk 0:00:21.8]} 47.
Rd5 {[%clk 0:00:06.6]} 47... Kb6 {[%clk 0:00:23.2]} 48. Rd3 {[%clk 0:00:07.2]}
48... Kc6 {[%clk 0:00:22.7]} 49. Rb3 {[%clk 0:00:07.7]} 49... Bb6 {[%clk
0:00:17]} 50. Rb2 {[%clk 0:00:08.5]} 50... Re1 {[%clk 0:00:16.2]} 51. Be2 {[%clk
0:00:09.3]} 51... Ra1 {[%clk 0:00:16.9]} 52. h5 {[%clk 0:00:08.9]} 52... Ra3
{[%clk 0:00:17]} 53. h6 {[%clk 0:00:09.3]} 53... Kc7 {[%clk 0:00:17.9]} 54. Bc4
{[%clk 0:00:08.7]} 54... Ra4 {[%clk 0:00:18.6]} 55. Rc2 {[%clk 0:00:09.4]} 55...
Kd6 {[%clk 0:00:18.5]} 56. Bb5 {[%clk 0:00:09.8]} 56... Ra5 {[%clk 0:00:19.5]}
57. Rc6+ {[%clk 0:00:10.7]} 57... Ke5 {[%clk 0:00:18.2]} 58. Rxb6 {[%clk
0:00:12.2]} 58... f4 {[%clk 0:00:20.1]} 59. Rb7 {[%clk 0:00:13.6]} 59... Ke4
{[%clk 0:00:21]} 60. gxf4 {[%clk 0:00:14.6]} 60... Kxf4 {[%clk 0:00:21.3]} 61.
a7 {[%clk 0:00:15.8]} 61... g5 {[%clk 0:00:21.2]} 62. Bc6 {[%clk 0:00:16.8]}
62... g4 {[%clk 0:00:22.5]} 63. Rf7+ {[%clk 0:00:17.7]} 63... Kg5 {[%clk
0:00:22]} 64. a8=Q {[%clk 0:00:18.8]} 64... Rc5 {[%clk 0:00:23.9]} 65. Be4
{[%clk 0:00:18.8]} 65... Kh4 {[%clk 0:00:24.9]} 66. Qd8+ {[%clk 0:00:18.6]}
66... Rg5 {[%clk 0:00:26.4]} 67. Rg7 {[%clk 0:00:18.3]} 67... g3 {[%clk
0:00:28.3]} 68. Qxg5# {[%clk 0:00:19.2]} 1-0

[Event "*** Titled Tuesday 3|2 Blitz"]
[Site "Chess.com"]
[Date "2016.06.07"]
[Round "2"]
[White "Mornar1951"]
[Black "ShimanovAlex"]
[Result "0-1"]
[WhiteElo "2502"]
[BlackElo "2648"]
[TimeControl "180+2"]
[EndTime "17:24:05 PDT"]
[Termination "ShimanovAlex won on time"]

1. Nf3 {[%clk 0:03:01.9]} 1... Nf6 {[%clk 0:02:36.2]} 2. c4 {[%clk 0:03:02.7]}
2... g6 {[%clk 0:02:35.8]} 3. Nc3 {[%clk 0:03:03.9]} 3... Bg7 {[%clk 0:02:37]}
4. e4 {[%clk 0:03:05]} 4... d6 {[%clk 0:02:36.8]} 5. d4 {[%clk 0:03:06.4]} 5...
O-O {[%clk 0:02:38.1]} 6. Be2 {[%clk 0:03:08]} 6... Na6 {[%clk 0:02:39.1]} 7.
O-O {[%clk 0:03:09]} 7... e5 {[%clk 0:02:40.4]} 8. Re1 {[%clk 0:03:09.2]} 8...
c6 {[%clk 0:02:40.7]} 9. Be3 {[%clk 0:03:10.2]} 9... Re8 {[%clk 0:02:41.4]} 10.
dxe5 {[%clk 0:02:42.3]} 10... Ng4 {[%clk 0:02:41.8]} 11. Bc1 {[%clk 0:02:27.2]}
11... Qb6 {[%clk 0:02:34.4]} 12. Rf1 {[%clk 0:02:28.2]} 12... dxe5 {[%clk
0:02:34.7]} 13. h3 {[%clk 0:02:29]} 13... Nf6 {[%clk 0:02:35.8]} 14. Qc2 {[%clk
0:02:24.3]} 14... Qd8 {[%clk 0:02:34.4]} 15. Be3 {[%clk 0:02:21.9]} 15... Qe7
{[%clk 0:02:34.4]} 16. Rad1 {[%clk 0:02:13.3]} 16... Nh5 {[%clk 0:02:32.9]} 17.
a3 {[%clk 0:02:08.6]} 17... Nc5 {[%clk 0:02:32.1]} 18. b4 {[%clk 0:02:08.9]}
18... Ne6 {[%clk 0:02:33.2]} 19. c5 {[%clk 0:02:07.7]} 19... Nhf4 {[%clk
0:02:27.8]} 20. Bc4 {[%clk 0:02:08.4]} 20... Qf6 {[%clk 0:02:28.8]} 21. Bxf4
{[%clk 0:01:59.4]} 21... Nxf4 {[%clk 0:02:28.8]} 22. Rd6 {[%clk 0:01:22.2]}
22... Nxh3+ {[%clk 0:02:11.5]} 23. Kh1 {[%clk 0:01:23.1]} 23... Qf4 {[%clk
0:02:12.7]} 24. Ne2 {[%clk 0:01:05.9]} 24... Qh6 {[%clk 0:02:13.5]} 25. gxh3
{[%clk 0:01:06.5]} 25... Bxh3 {[%clk 0:02:12.8]} 26. Kg1 {[%clk 0:01:04.5]}
26... Qh5 {[%clk 0:01:42.8]} 27. Qb3 {[%clk 0:00:54.5]} 27... Bxf1 {[%clk
0:01:31]} 28. Bxf7+ {[%clk 0:00:43.7]} 28... Kh8 {[%clk 0:01:31.6]} 29. Kxf1
{[%clk 0:00:35.6]} 29... Rf8 {[%clk 0:01:31.3]} 30. Ng3 {[%clk 0:00:34.1]} 30...
Qh3+ {[%clk 0:01:31.6]} 31. Ke2 {[%clk 0:00:34.8]} 31... Qg4 {[%clk 0:01:31.9]}
32. Be6 {[%clk 0:00:34.1]} 32... Qf4 {[%clk 0:01:31.8]} 33. Qe3 {[%clk
0:00:33.3]} 33... Rad8 {[%clk 0:01:26.2]} 34. Ng5 {[%clk 0:00:20.6]} 34... Rxd6
{[%clk 0:00:55.3]} 35. cxd6 {[%clk 0:00:22.5]} 35... Qxe3+ {[%clk 0:00:56.3]}
36. fxe3 {[%clk 0:00:22.4]} 36... Bf6 {[%clk 0:00:57.5]} 37. Nf3 {[%clk
0:00:18.5]} 37... Kg7 {[%clk 0:00:56.6]} 38. Nf1 {[%clk 0:00:19.2]} 38... Rd8
{[%clk 0:00:57]} 39. d7 {[%clk 0:00:20]} 39... Kf8 {[%clk 0:00:55.5]} 40. N1d2
{[%clk 0:00:19.6]} 40... Ke7 {[%clk 0:00:56.6]} 41. Bh3 {[%clk 0:00:20.4]} 41...
h5 {[%clk 0:00:57.3]} 42. Nc4 {[%clk 0:00:20.5]} 42... g5 {[%clk 0:00:58.4]} 43.
Nfxe5 {[%clk 0:00:21.4]} 43... Bxe5 {[%clk 0:00:59.5]} 44. Nxe5 {[%clk
0:00:22.6]} 44... g4 {[%clk 0:01:00.9]} 45. Nxg4 {[%clk 0:00:21.2]} 45... hxg4
{[%clk 0:01:01.5]} 46. Bxg4 {[%clk 0:00:23.1]} 46... a5 {[%clk 0:01:00.6]} 47.
Kd3 {[%clk 0:00:21.8]} 47... a4 {[%clk 0:01:00.2]} 48. e5 {[%clk 0:00:21.3]}
48... Rg8 {[%clk 0:01:00.6]} 49. Bd1 {[%clk 0:00:21.3]} 49... Kxd7 {[%clk
0:00:57.4]} 50. Kc4 {[%clk 0:00:18.3]} 50... Rg5 {[%clk 0:00:54.6]} 51. Kd4
{[%clk 0:00:18]} 51... b5 {[%clk 0:00:54.1]} 52. Bf3 {[%clk 0:00:18.2]} 52...
Rg1 {[%clk 0:00:53.5]} 53. e6+ {[%clk 0:00:16]} 53... Kd6 {[%clk 0:00:48.7]} 54.
e7 {[%clk 0:00:15.7]} 54... Rg8 {[%clk 0:00:48.9]} 55. e4 {[%clk 0:00:14.7]}
55... Kxe7 {[%clk 0:00:39.6]} 56. e5 {[%clk 0:00:14.9]} 56... Kd7 {[%clk
0:00:29.4]} 57. Kc5 {[%clk 0:00:15.7]} 57... Rg6 {[%clk 0:00:29.5]} 58. e6+
{[%clk 0:00:13.5]} 58... Kc7 {[%clk 0:00:28.7]} 59. Bxc6 {[%clk 0:00:14.5]}
59... Rg5+ {[%clk 0:00:26.9]} 60. Bd5 {[%clk 0:00:14.7]} 60... Rh5 {[%clk
0:00:27.9]} 61. e7 {[%clk 0:00:10.9]} 61... Kd7 {[%clk 0:00:28.2]} 62. e8=Q+
{[%clk 0:00:11.4]} 62... Kxe8 {[%clk 0:00:28.3]} 63. Kc6 {[%clk 0:00:13.1]}
63... Ke7 {[%clk 0:00:28.7]} 64. Be4 {[%clk 0:00:13.5]} 64... Ke6 {[%clk
0:00:21.9]} 65. Bd3 {[%clk 0:00:13.4]} 65... Rh3 {[%clk 0:00:23.1]} 66. Bxb5
{[%clk 0:00:14.5]} 66... Rxa3 {[%clk 0:00:24.2]} 67. Kc5 {[%clk 0:00:15.7]}
67... Ra1 {[%clk 0:00:24.4]} 68. Kd4 {[%clk 0:00:14.7]} 68... a3 {[%clk
0:00:23.6]} 69. Kc3 {[%clk 0:00:15.7]} 69... Rb1 {[%clk 0:00:24.8]} 70. Bc4+
{[%clk 0:00:14.2]} 70... Ke5 {[%clk 0:00:26.2]} 71. Bb3 {[%clk 0:00:14.2]} 71...
Kd6 {[%clk 0:00:27.3]} 72. Kc2 {[%clk 0:00:13.4]} 72... Rb2+ {[%clk 0:00:27.8]}
73. Kc3 {[%clk 0:00:15.1]} 73... Kc6 {[%clk 0:00:29.3]} 74. Bc4 {[%clk
0:00:16.2]} 74... Kb6 {[%clk 0:00:29.7]} 75. Bd3 {[%clk 0:00:16.1]} 75... Rh2
{[%clk 0:00:28.1]} 76. Bc4 {[%clk 0:00:03.3]} 76... a2 {[%clk 0:00:28.2]} 0-1

[Event "*** Titled Tuesday 3|2 Blitz"]
[Site "Chess.com"]
[Date "2016.06.07"]
[Round "2"]
[White "chickencrossroad"]
[Black "Danhy"]
[Result "1/2-1/2"]
[WhiteElo "2242"]
[BlackElo "2468"]
[TimeControl "180+2"]
[EndTime "17:24:17 PDT"]
[Termination "Game drawn by repetition"]

1. e4 {[%clk 0:03:01.9]} 1... c5 {[%clk 0:03:00.6]} 2. Nc3 {[%clk 0:03:02]} 2...
g6 {[%clk 0:03:01.6]} 3. d4 {[%clk 0:02:49.9]} 3... cxd4 {[%clk 0:03:00.5]} 4.
Qxd4 {[%clk 0:02:51.1]} 4... Nf6 {[%clk 0:02:59.2]} 5. e5 {[%clk 0:02:21.7]}
5... Nc6 {[%clk 0:02:57.5]} 6. Qf4 {[%clk 0:02:22.9]} 6... Nh5 {[%clk
0:02:56.7]} 7. Qe4 {[%clk 0:01:55.9]} 7... Bg7 {[%clk 0:02:52.6]} 8. Nf3 {[%clk
0:01:23.5]} 8... d6 {[%clk 0:02:41.7]} 9. Bb5 {[%clk 0:01:10.1]} 9... O-O {[%clk
0:02:41.7]} 10. g4 {[%clk 0:00:47.9]} 10... d5 {[%clk 0:02:40.5]} 11. Nxd5
{[%clk 0:00:37.8]} 11... Bxg4 {[%clk 0:02:31]} 12. Bxc6 {[%clk 0:00:26.1]} 12...
Bxf3 {[%clk 0:02:27.4]} 13. Qxf3 {[%clk 0:00:15.5]} 13... bxc6 {[%clk
0:02:27.8]} 14. Nf4 {[%clk 0:00:16.5]} 14... Qa5+ {[%clk 0:02:25.3]} 15. Kf1
{[%clk 0:00:16.3]} 15... Nxf4 {[%clk 0:02:09.4]} 16. Bxf4 {[%clk 0:00:16.4]}
16... Bxe5 {[%clk 0:02:10.2]} 17. Bxe5 {[%clk 0:00:06.1]} 17... Qxe5 {[%clk
0:02:10.6]} 18. Re1 {[%clk 0:00:07.4]} 18... Qxb2 {[%clk 0:02:07.5]} 19. h4
{[%clk 0:00:08.9]} 19... Qxa2 {[%clk 0:01:54]} 20. h5 {[%clk 0:00:05.5]} 20...
Qc4+ {[%clk 0:01:54.6]} 21. Kg2 {[%clk 0:00:04.4]} 21... Qxc2 {[%clk 0:01:52.6]}
22. Rxe7 {[%clk 0:00:04.7]} 22... Qf5 {[%clk 0:01:36.5]} 23. Qxf5 {[%clk
0:00:04]} 23... gxf5 {[%clk 0:01:37.9]} 24. Kf3 {[%clk 0:00:03.1]} 24... Rfe8
{[%clk 0:01:33.6]} 25. Rc7 {[%clk 0:00:03.2]} 25... Re6 {[%clk 0:01:31.4]} 26.
Rd1 {[%clk 0:00:04.4]} 26... Kg7 {[%clk 0:00:57]} 27. Rg1+ {[%clk 0:00:04.1]}
27... Kh6 {[%clk 0:00:57]} 28. Rxf7 {[%clk 0:00:04.7]} 28... Rd8 {[%clk
0:00:48]} 29. Rgg7 {[%clk 0:00:04.3]} 29... Rh8 {[%clk 0:00:48.6]} 30. Rxa7
{[%clk 0:00:05.6]} 30... Kxh5 {[%clk 0:00:49.1]} 31. Rxh7+ {[%clk 0:00:06.8]}
31... Rxh7 {[%clk 0:00:50]} 32. Rxh7+ {[%clk 0:00:08.7]} 32... Kg6 {[%clk
0:00:51.9]} 33. Rc7 {[%clk 0:00:09.8]} 33... Kf6 {[%clk 0:00:53]} 34. Kf4 {[%clk
0:00:10]} 34... Re4+ {[%clk 0:00:54.1]} 35. Kf3 {[%clk 0:00:11.6]} 35... Rc4
{[%clk 0:00:55.1]} 36. Rc8 {[%clk 0:00:12.2]} 36... Ke5 {[%clk 0:00:56]} 37.
Re8+ {[%clk 0:00:08.5]} 37... Kd6 {[%clk 0:00:56.3]} 38. Rf8 {[%clk 0:00:07.4]}
38... Ke6 {[%clk 0:00:55.3]} 39. Re8+ {[%clk 0:00:06.4]} 39... Kf7 {[%clk
0:00:56.3]} 40. Rc8 {[%clk 0:00:07.2]} 40... c5 {[%clk 0:00:55.7]} 41. Rc6
{[%clk 0:00:07.8]} 41... Ke7 {[%clk 0:00:55.3]} 42. Ke3 {[%clk 0:00:08.5]} 42...
Re4+ {[%clk 0:00:52.1]} 43. Kd3 {[%clk 0:00:06.3]} 43... Re5 {[%clk 0:00:50.1]}
44. Kc4 {[%clk 0:00:07.4]} 44... Re2 {[%clk 0:00:48.9]} 45. Kxc5 {[%clk
0:00:07]} 45... Rxf2 {[%clk 0:00:48.7]} 46. Kd4 {[%clk 0:00:08.4]} 46... Re2
{[%clk 0:00:47.4]} 47. Kd3 {[%clk 0:00:06.4]} 47... Re5 {[%clk 0:00:46.5]} 48.
Kd4 {[%clk 0:00:05.5]} 48... Re4+ {[%clk 0:00:46.9]} 49. Kd3 {[%clk 0:00:06.6]}
49... Re6 {[%clk 0:00:47.9]} 50. Rc5 {[%clk 0:00:04.5]} 50... Kf6 {[%clk
0:00:48.9]} 51. Rc8 {[%clk 0:00:04.2]} 51... Ke5 {[%clk 0:00:48.5]} 52. Ke3
{[%clk 0:00:04.4]} 52... Rg6 {[%clk 0:00:41.6]} 53. Rc5+ {[%clk 0:00:04.6]}
53... Kf6 {[%clk 0:00:40.7]} 54. Kf4 {[%clk 0:00:05.5]} 54... Rg4+ {[%clk
0:00:41.4]} 55. Kf3 {[%clk 0:00:07.1]} 55... Kg5 {[%clk 0:00:42.4]} 56. Rc8
{[%clk 0:00:08.6]} 56... Ra4 {[%clk 0:00:42.2]} 57. Rg8+ {[%clk 0:00:09.6]}
57... Kf6 {[%clk 0:00:43.2]} 58. Rf8+ {[%clk 0:00:11.1]} 58... Kg6 {[%clk
0:00:44.3]} 59. Rg8+ {[%clk 0:00:12.4]} 59... Kf7 {[%clk 0:00:45.2]} 60. Rb8
{[%clk 0:00:13.6]} 60... Ke6 {[%clk 0:00:46.1]} 61. Re8+ {[%clk 0:00:13.7]}
61... Kd5 {[%clk 0:00:46.9]} 62. Rf8 {[%clk 0:00:13.5]} 62... Ke5 {[%clk
0:00:47]} 63. Re8+ {[%clk 0:00:14.8]} 63... Kf6 {[%clk 0:00:48]} 64. Rf8+ {[%clk
0:00:16.3]} 64... Kg6 {[%clk 0:00:48.8]} 65. Rg8+ {[%clk 0:00:14.1]} 65... Kf7
{[%clk 0:00:49.7]} 66. Rb8 {[%clk 0:00:15.8]} 66... Re4 {[%clk 0:00:47.7]} 67.
Rb6 {[%clk 0:00:17.1]} 67... Ra4 {[%clk 0:00:45.8]} 68. Rc6 {[%clk 0:00:18.3]}
68... Ke7 {[%clk 0:00:46.5]} 69. Rb6 {[%clk 0:00:19.5]} 69... Kf7 {[%clk
0:00:47.3]} 70. Rc6 {[%clk 0:00:20.9]} 70... Re4 {[%clk 0:00:47.3]} 71. Rb6
{[%clk 0:00:22.4]} 71... Re6 {[%clk 0:00:48.5]} 72. Rxe6 {[%clk 0:00:23.7]}
72... Kxe6 {[%clk 0:00:49.6]} 73. Kf4 {[%clk 0:00:25.6]} 73... Kf6 {[%clk
0:00:51.5]} 74. Kf3 {[%clk 0:00:27.2]} 74... Kg5 {[%clk 0:00:53.4]} 75. Kg3
{[%clk 0:00:28.8]} 75... Kg6 {[%clk 0:00:54.5]} 76. Kf4 {[%clk 0:00:29.9]} 76...
Kf6 {[%clk 0:00:56.4]} 77. Kf3 {[%clk 0:00:31.5]} 77... Ke6 {[%clk 0:00:56.7]}
78. Kf4 {[%clk 0:00:32.5]} 78... Kf6 {[%clk 0:00:58.1]} 79. Kf3 {[%clk
0:00:34.2]} 79... Ke5 {[%clk 0:01:00]} 80. Ke3 {[%clk 0:00:35.7]} 80... f4+
{[%clk 0:01:01.3]} 81. Kf3 {[%clk 0:00:37.3]} 81... Kf5 {[%clk 0:01:03.2]} 82.
Kf2 {[%clk 0:00:38.9]} 82... Kg5 {[%clk 0:01:05.1]} 83. Kf3 {[%clk 0:00:40.2]}
83... Kf5 {[%clk 0:01:06.5]} 84. Kf2 {[%clk 0:00:41.8]} 84... Ke4 {[%clk
0:01:08.4]} 85. Ke2 {[%clk 0:00:43.4]} 85... Kf5 {[%clk 0:01:09.7]} 86. Kf3
{[%clk 0:00:44.9]} 86... Kg5 {[%clk 0:01:11.2]} 87. Kf2 {[%clk 0:00:46.5]} 87...
Kg4 {[%clk 0:01:13.1]} 88. Kg2 {[%clk 0:00:48]} 88... Kf5 {[%clk 0:01:12.2]} 89.
Kf3 {[%clk 0:00:49.2]} 89... Ke5 {[%clk 0:01:13.3]} 90. Kf2 {[%clk 0:00:50.6]}
90... Ke6 {[%clk 0:01:14.5]} 91. Kf3 {[%clk 0:00:51.9]} 91... Kf5 {[%clk
0:01:15.8]} 92. Kf2 {[%clk 0:00:53.5]} 92... Kg4 {[%clk 0:01:16.2]} 93. Kg2
{[%clk 0:00:55]} 93... Kf5 {[%clk 0:01:16.7]} 94. Kf3 {[%clk 0:00:56.3]} 94...
Ke5 {[%clk 0:01:18.6]} 95. Kf2 {[%clk 0:00:57.9]} 95... Kf5 {[%clk 0:01:20.3]}
96. Kf3 {[%clk 0:00:59.4]} 96... Kg5 {[%clk 0:01:22.2]} 97. Kf2 {[%clk 0:01:01]}
97... Kh4 {[%clk 0:01:23.5]} 98. Kf3 {[%clk 0:01:02.1]} 98... Kg5 {[%clk
0:01:25]} 1/2-1/2